bitfinex/quotes_ETHUSD_20250424
["timestamp","ask_amount","ask_price","bid_price","bid_amount"]
[1745485427779,0.55,1736.7,1736.2,6.237]
[1745485427980,0.7802,1736.6,1736.2,11.99653756]
[1745485428139,0.7802,1736.6,1736.3,5.75927094]
[1745485428848,0.7802,1736.6,1736.2,11.99649577]
[1745485429051,0.55,1736.5,1736.2,6.237]
[1745485429445,0.7802,1736.6,1736.3,5.75932898]
[1745485430611,0.7802,1736.6,1736.3,5.75936272]
[1745485430845,0.7802,1736.6,1736.4,5.75892217]
[1745485431242,0.7802,1736.6,1736.3,5.75918792]
[1745485431582,0.7802,1736.6,1736.4,0.57591879]
[1745485431742,0.7802,1736.6,1736.2,11.9964819]
[1745485432783,0.7802,1736.6,1736.2,6.237]
[1745485432984,0.55,1736.5,1736.2,6.237]
[1745485433278,0.7629,1736.4,1735.9,12.29099475]
[1745485433482,0.55,1736.3,1735.9,5.76042042]
[1745485433679,0.55,1736.3,1736.0,5.76034093]
[1745485433882,0.55,1736.1,1735.8,6.236]
[1745485434249,0.55,1736.1,1735.8,17.75772972]
[1745485434453,0.55,1736.1,1735.8,11.99680166]
[1745485434993,0.55,1735.7,1735.2,5.76274119]
[1745485435149,0.55,1735.7,1735.2,6.99374179]
[1745485435357,0.55,1735.7,1735.3,5.76264819]
[1745485436075,0.7982,1735.8,1735.4,5.7621953]
[1745485436465,0.7982,1735.8,1735.4,11.52437581]
[1745485436649,0.7982,1735.8,1735.5,1.15243758]
[1745485437103,0.7982,1735.8,1735.4,5.76218051]
[1745485437264,0.7982,1735.8,1735.3,5.76249377]
[1745485437600,3.55,1735.7,1735.2,1.2310006]
[1745485437901,0.752,1735.6,1735.1,11.52647067]
[1745485438146,0.752,1735.6,1735.1,11.52634491]
[1745485438285,0.752,1735.6,1735.2,5.76271799]
[1745485438456,0.752,1735.6,1735.4,5.76235237]
[1745485438789,0.752,1735.6,1734.9,3.7934]
[1745485438958,0.752,1735.6,1735.3,5.76265635]
[1745485440493,0.752,1735.6,1735.3,11.52492472]
[1745485440682,0.752,1735.6,1735.4,5.76232389]
[1745485440877,0.752,1735.6,1735.3,5.76245154]
[1745485441179,0.814,1735.8,1735.5,5.7619271]
[1745485441381,0.7927,1736.2,1735.6,6.33765928]
[1745485441586,0.7927,1736.2,1735.7,5.7611594]
[1745485441922,0.7927,1736.2,1735.8,5.76076326]
[1745485442457,0.55,1736.1,1735.8,5.76076326]
[1745485443563,0.55,1736.1,1735.7,5.76119915]
[1745485443757,0.55,1736.1,1735.7,7.04662205]
[1745485444092,0.55,1736.1,1735.7,1.2854229]
[1745485444461,0.55,1736.1,1735.8,5.76080705]
[1745485444659,0.7927,1736.2,1735.9,5.76045487]
[1745485445573,0.7862,1736.5,1736.1,5.76003686]
[1745485445812,0.7862,1736.5,1736.2,0.57600369]
[1745485446006,0.7862,1736.5,1736.0,0.7807]
[1745485446007,0.7862,1736.8,1736.4,5.75904169]
[1745485446394,0.7862,1736.8,1736.5,5.75869872]
[1745485446641,0.7862,1736.8,1736.4,5.7588171]
[1745485447637,0.55,1736.7,1736.4,5.7588171]
[1745485448002,0.55,1736.7,1736.4,11.51763224]
[1745485448216,0.55,1736.7,1736.4,6.91057836]
[1745485449226,0.55,1736.7,1736.4,1.15176322]
[1745485449428,0.55,1736.7,1736.3,5.75913671]
[1745485449632,0.7862,1736.8,1736.6,5.75822343]
[1745485450453,0.7862,1736.8,1736.7,5.75804687]
[1745485450612,0.8209,1737.0,1736.7,5.75804687]
[1745485450945,0.8209,1737.2,1736.9,5.75738384]
[1745485451331,0.8209,1737.2,1736.9,5.75722023]
[1745485451532,0.8209,1737.2,1737.0,5.75695011]
[1745485451712,0.8209,1737.2,1737.1,5.75672097]
[1745485451909,0.55,1737.3,1737.1,5.75672097]
[1745485452115,0.7793,1737.6,1737.3,5.75601607]
[1745485452553,0.7793,1737.6,1737.4,5.75551869]
[1745485453052,0.55,1737.5,1737.1,1.15135442]
[1745485453273,0.55,1737.3,1736.9,5.75728112]
[1745485454072,0.55,1737.3,1736.9,1.91073474]
[1745485454273,0.55,1737.3,1737.0,5.75685576]
[1745485454435,0.55,1737.1,1736.8,6.226]
[1745485454770,4.33411652,1737.1,1736.4,0.807]
[1745485455077,4.33411652,1737.1,1736.5,5.75848064]
[1745485455078,0.55,1736.9,1736.5,5.75848064]
[1745485455381,6.225,1737.5,1736.5,0.807]
[1745485455382,0.55,1737.5,1736.5,0.807]
[1745485455585,0.55,1737.2,1736.8,5.75756849]
[1745485455885,0.7963,1737.3,1737.0,5.75677116]
[1745485456478,0.7659,1737.6,1737.2,5.75613753]
[1745485456639,0.7659,1737.6,1737.3,5.75592136]
[1745485457352,0.7659,1737.6,1737.4,5.75571931]
[1745485457851,0.7659,1737.6,1737.3,5.75589018]
[1745485458039,0.7659,1737.6,1737.4,5.75562166]
[1745485458681,0.7659,1737.6,1737.4,5.75550912]
[1745485458884,1.3766,1737.8,1737.5,5.75539568]
[1745485459045,1.3766,1737.8,1737.4,5.75550912]
[1745485459242,0.8266,1737.8,1737.4,5.75548999]
[1745485459444,0.8266,1737.8,1737.4,6.38859789]
[1745485460069,0.8266,1737.8,1737.5,11.51039239]
[1745485460273,0.8266,1737.8,1737.6,5.75502555]
[1745485461047,0.8266,1737.8,1737.7,5.75473326]
[1745485461356,0.8266,1737.8,1737.6,5.75486687]
[1745485461588,0.8266,1737.8,1737.6,6.90587411]
[1745485461957,0.8266,1737.8,1737.6,6.90583342]
[1745485462156,0.8266,1737.8,1737.6,6.905833]
[1745485464496,0.8266,1737.8,1737.4,6.38869531]
[1745485464876,0.8266,1737.8,1737.4,12.14423551]
[1745485465074,0.8266,1737.8,1737.5,5.75534308]
[1745485465491,0.8266,1737.8,1737.4,12.14414783]
[1745485465695,0.8266,1737.8,1737.5,5.75526458]
[1745485465990,0.8266,1737.8,1737.5,12.72489351]
[1745485466345,0.98797132,1738.0,1737.5,1.21438722]
[1745485466551,0.7613,1738.0,1737.7,5.75458687]
[1745485466766,0.7613,1738.0,1737.7,5.7545195]
[1745485467049,0.7613,1738.3,1737.9,5.754071]
[1745485467276,0.55,1738.2,1737.9,5.754071]
[1745485467550,0.7932,1738.1,1737.8,0.57545195]
[1745485467750,0.55,1738.0,1737.5,1.21438722]
[1745485467972,0.8216,1738.0,1737.6,5.7549848]
[1745485468179,0.55,1737.9,1737.6,5.7549848]
[1745485468552,0.55,1737.9,1737.6,5.75484013]
[1745485468895,0.55,1737.9,1737.7,5.75471549]
[1745485469307,0.8216,1738.0,1737.4,6.38879903]
[1745485469308,0.8216,1738.0,1737.8,5.75413966]
[1745485469454,0.8216,1738.0,1737.8,6.32955363]
[1745485469654,6.03860489,1738.4,1737.9,5.754071]
[1745485469854,0.7972,1738.3,1738.0,5.75373767]
[1745485470088,3.7972,1738.3,1738.0,5.75373767]
[1745485470254,0.7972,1738.3,1737.8,6.3295992]
[1745485470455,3.7972,1738.3,1737.9,12.14077387]
[1745485470856,3.7972,1738.3,1737.9,6.38680683]
[1745485471079,3.7972,1738.3,1737.9,0.63295992]
[1745485471361,3.7972,1738.3,1737.9,6.38692738]
[1745485471681,0.55,1738.2,1737.9,0.63295992]
[1745485471873,0.55,1738.2,1737.7,5.75457509]
[1745485472077,0.55,1738.2,1737.8,5.75439967]
[1745485472281,0.55,1738.2,1737.9,5.75392728]
[1745485472476,0.55,1738.2,1737.9,11.50776607]
[1745485472681,0.55,1738.2,1737.9,5.75383879]
[1745485472918,3.7972,1738.3,1737.9,6.90464285]
[1745485473095,3.7972,1738.3,1738.0,5.75361369]
[1745485473315,3.7972,1738.3,1737.9,5.75383879]
[1745485473667,0.55,1738.2,1737.7,5.75451121]
[1745485474270,0.55,1738.2,1737.7,5.75450695]
[1745485474707,0.55,1738.2,1737.7,11.50901816]
[1745485474903,0.55,1738.2,1737.7,1.15090182]
[1745485475204,0.55,1738.0,1737.7,6.90559098]
[1745485475404,0.55,1738.0,1737.5,5.75523626]
[1745485476097,0.55,1738.0,1737.5,11.51039939]
[1745485476469,0.55,1738.0,1737.5,5.75518314]
[1745485476714,0.55,1738.0,1737.5,11.51043788]
[1745485477205,0.55,1738.0,1737.6,5.75496659]
[1745485477505,0.8042,1738.1,1737.7,0.8233]
[1745485477667,0.8042,1738.1,1737.9,5.75401688]
[1745485477869,0.8042,1738.1,1737.7,6.57790425]
[1745485478086,0.55,1738.0,1737.7,5.75447452]
[1745485478490,0.55,1738.0,1737.6,5.75484111]
[1745485478691,0.8042,1738.1,1737.8,5.75425546]
[1745485479021,0.8042,1738.1,1737.8,5.754175]
[1745485479219,0.8042,1738.1,1738.0,5.75373993]
[1745485479400,3.7926,1738.3,1738.0,5.75373993]
[1745485479796,3.7926,1738.3,1737.9,5.75385535]
[1745485480000,3.7926,1738.3,1737.9,6.40888605]
[1745485482404,3.7926,1738.3,1737.9,6.40888605]
[1745485483043,0.55,1738.2,1737.6,1.38718411]
[1745485483212,0.55,1738.2,1737.8,5.75422995]
[1745485484040,0.55,1738.2,1737.8,5.7541818]
[1745485484238,0.55,1738.2,1737.8,5.75417802]
[1745485484615,0.55,1738.2,1737.9,5.75404062]
[1745485485235,0.55,1738.2,1737.8,11.50834264]
[1745485485435,0.55,1738.2,1737.9,6.90488271]
[1745485485734,0.55,1738.2,1737.9,1.15083426]
[1745485486043,3.7926,1738.3,1737.9,6.90476891]
[1745485486224,3.7926,1738.3,1737.9,12.65861126]
[1745485486429,3.7926,1738.3,1737.9,6.90467661]
[1745485486617,3.7926,1738.3,1737.9,11.50771761]
[1745485486818,3.7926,1738.3,1737.9,11.50768197]
[1745485487019,3.7926,1738.3,1738.0,5.75357844]
[1745485487237,0.7926,1738.3,1738.0,5.75357844]
[1745485487850,0.7926,1738.3,1737.9,11.50769571]
[1745485488042,0.7926,1738.3,1738.0,1.15076957]
[1745485488207,0.7926,1738.3,1738.0,6.90448016]
[1745485488407,0.7926,1738.3,1738.1,5.75336903]
[1745485488609,0.7926,1738.3,1738.0,6.9042976]
[1745485488804,0.7926,1738.3,1737.9,5.753899]
[1745485489034,0.7926,1738.3,1737.9,5.75383799]
[1745485489245,0.7926,1738.3,1738.0,5.75361967]
[1745485490059,0.7926,1738.3,1737.9,11.50767583]
[1745485490653,0.7926,1738.3,1738.0,5.75373762]
[1745485490900,0.7926,1738.3,1738.0,6.68915129]
[1745485491054,0.7926,1738.3,1738.0,6.68894174]
[1745485491223,0.7926,1738.3,1738.1,5.75336229]
[1745485491419,0.755,1738.6,1738.3,5.75243644]
[1745485491637,0.755,1738.6,1738.4,5.75239188]
[1745485491846,0.755,1739.0,1738.4,5.75239188]
[1745485492161,1.305,1738.9,1738.4,5.75219248]
[1745485492468,0.755,1738.9,1738.4,5.75210787]
[1745485492623,0.755,1738.9,1738.5,5.75206457]
[1745485492825,0.755,1738.9,1738.6,0.57520646]
[1745485493239,0.8018,1739.5,1738.7,0.7952]
[1745485493421,0.8018,1739.5,1739.0,5.75032805]
[1745485493626,0.005,1739.6,1738.7,6.54638091]
[1745485493627,3.77664862,1739.3,1738.7,6.54638091]
[1745485493852,0.005,1739.6,1738.8,0.65463809]
[1745485493853,0.8018,1739.2,1738.8,0.65463809]
[1745485494060,0.7974,1739.5,1739.0,5.75028632]
[1745485494258,1.22973623,1739.5,1739.0,5.75028632]
[1745485494454,4.22973623,1739.5,1739.0,5.75028632]
[1745485494661,0.55,1739.4,1739.0,11.50048824]
[1745485494839,1.22973623,1739.5,1739.1,5.7499885]
[1745485495049,1.22973623,1739.5,1739.2,6.32459258]
[1745485495259,0.005,1739.6,1739.2,0.57499885]
[1745485495430,0.005,1739.6,1739.4,5.74899356]
[1745485496369,0.005,1739.6,1739.4,6.53119838]
[1745485496534,0.005,1739.6,1739.4,6.53125812]
[1745485496866,0.005,1739.6,1739.5,0.65312581]
[1745485497065,0.005,1739.6,1739.4,5.74899446]
[1745485497268,0.005,1739.6,1739.5,5.74877838]
[1745485497469,0.005,1739.6,1739.4,5.74895225]
[1745485497768,0.005,1739.6,1739.3,5.74943942]
[1745485497932,0.005,1739.6,1739.2,0.57499885]
[1745485497933,0.005,1739.6,1739.4,5.74878277]
[1745485498132,0.005,1739.6,1739.5,0.57487828]
[1745485498456,0.005,1739.6,1739.5,6.32365666]
[1745485498605,0.005,1739.6,1739.5,0.57487828]
[1745485499216,0.005,1739.6,1739.5,6.32365666]
[1745485499698,0.005,1739.6,1739.5,7.13935666]
[1745485501603,0.005,1739.6,1739.5,6.32365666]
[1745485501810,0.005,1739.6,1739.5,10.08875666]
[1745485503208,0.005,1739.6,1739.5,7.08875666]
[1745485503383,0.005,1739.6,1739.5,6.32365666]
[1745485504788,0.005,1739.6,1739.5,0.57487828]
[1745485504992,0.005,1739.6,1739.4,6.206]
[1745485505680,0.005,1739.6,1739.4,11.95507568]
[1745485505969,0.005,1739.6,1739.5,5.74877838]
[1745485507390,0.005,1739.6,1739.4,12.77720833]
[1745485507915,0.005,1739.6,1739.4,6.206]
[1745485508220,0.005,1739.6,1739.3,5.74914284]
[1745485508389,0.005,1739.6,1739.4,5.74909914]
[1745485510118,0.005,1739.6,1739.3,6.3242047]
[1745485510722,0.555,1739.6,1739.2,5.74961198]
[1745485510885,0.555,1739.6,1739.0,30.92229734]
[1745485511081,0.555,1739.6,1739.1,5.74996432]
[1745485511287,0.55,1739.4,1739.0,25.172]
[1745485511601,0.55,1739.4,1739.0,11.94132177]
[1745485511802,0.55,1739.4,1739.0,13.79018935]
[1745485512002,0.813,1739.5,1739.1,5.75003586]
[1745485512312,0.813,1739.5,1739.0,13.79018228]
[1745485512509,0.813,1739.5,1739.1,11.49970884]
[1745485512838,0.55,1739.0,1738.4,6.191]
[1745485513126,0.55,1739.0,1738.3,0.57524364]
[1745485513127,0.55,1738.8,1738.3,0.57524364]
[1745485513333,0.55,1738.6,1738.3,0.57524364]
[1745485513483,0.55,1738.6,1738.1,6.53379392]
[1745485513999,3.0,1738.5,1737.9,6.191]
[1745485514202,0.7827,1738.3,1737.9,6.191]
[1745485514590,0.7827,1738.3,1737.9,11.94488485]
[1745485514790,0.55,1738.4,1738.1,5.75333861]
[1745485515007,0.55,1738.4,1738.1,6.90401839]
[1745485515445,0.7827,1738.5,1738.2,5.75306562]
[1745485515655,0.7827,1738.5,1738.1,6.90391903]
[1745485516290,0.7827,1738.5,1738.1,1.15067978]
[1745485516486,0.7827,1738.5,1738.0,5.75355129]
[1745485516706,0.55,1738.4,1737.9,6.191]
[1745485516919,0.55,1738.4,1738.0,5.75355965]
[1745485517121,0.55,1738.4,1737.9,11.94488658]
[1745485517338,0.55,1738.4,1737.9,11.94505392]
[1745485517490,0.55,1738.4,1737.9,13.79297279]
[1745485517843,0.55,1738.4,1737.9,8.03896989]
[1745485518145,0.55,1738.4,1737.9,6.191]
[1745485518490,0.55,1738.2,1737.6,19.7643]
[1745485518689,0.7995,1738.1,1737.7,5.75443391]
[1745485518934,0.7995,1738.1,1737.5,6.193]
[1745485519135,0.7995,1738.1,1737.6,5.75501123]
[1745485519354,0.7995,1738.1,1737.6,1.7703177]
[1745485519644,0.7995,1738.1,1737.5,11.94838084]
[1745485519791,0.55,1738.0,1737.5,6.193]
[1745485520408,0.55,1737.8,1737.4,5.75571736]
[1745485520609,0.55,1737.8,1737.4,5.755486]
[1745485520806,0.8223,1737.9,1737.5,5.75535421]
[1745485521020,0.8223,1737.9,1737.6,5.75500532]
[1745485521409,0.8223,1737.9,1737.5,0.57553542]
[1745485521631,0.8223,1737.9,1737.4,5.75554237]
[1745485521839,0.55,1737.8,1737.2,6.54495863]
[1745485522100,0.55,1737.8,1737.3,5.75604755]
[1745485522707,0.55,1737.8,1737.2,6.54499082]
[1745485522907,0.55,1737.8,1737.2,6.54495666]
[1745485523146,0.55,1737.8,1737.2,7.9056891]
[1745485523404,0.55,1737.6,1737.2,7.9056891]
[1745485523853,0.55,1737.6,1737.2,13.66177591]
[1745485524176,0.55,1737.6,1737.2,7.90560478]
[1745485524560,0.55,1737.6,1737.2,7.90576221]
[1745485524767,0.55,1737.6,1737.3,5.75593664]
[1745485524964,0.7781,1737.7,1737.3,1.36616161]
[1745485525281,3.42945305,1738.1,1737.5,5.75537983]
[1745485525426,0.7546,1738.0,1737.6,5.75491418]
[1745485525626,0.55,1737.9,1737.7,5.75469909]
[1745485525819,0.55,1737.9,1737.6,5.75491418]
[1745485526068,0.7546,1738.0,1737.7,5.75462011]
[1745485526236,0.7546,1738.0,1737.6,12.08517178]
[1745485526573,0.7546,1738.0,1737.3,5.75605825]
[1745485526720,0.55,1737.9,1737.4,5.75551694]
[1745485526925,0.55,1737.9,1737.6,5.75489688]
[1745485527427,0.7546,1738.0,1737.7,5.75463064]
[1745485527965,0.7546,1738.0,1737.6,5.75499363]
[1745485528172,0.55,1737.9,1737.5,5.7551914]
[1745485528528,0.55,1737.9,1737.5,5.75516864]
[1745485529369,0.55,1737.9,1737.6,5.75495177]
[1745485529570,0.55,1737.9,1737.6,11.50980183]
[1745485529867,0.7546,1738.0,1737.7,5.75442881]
[1745485530026,0.7546,1738.0,1737.7,11.50894259]
[1745485530228,0.7546,1738.0,1737.7,5.75442881]
[1745485530870,0.7546,1738.0,1737.6,6.90587154]
[1745485531372,0.7546,1738.0,1737.5,5.75526911]
[1745485531373,0.7546,1738.0,1737.5,5.75519042]
[1745485531681,0.55,1737.9,1737.5,5.75525618]
[1745485531822,0.55,1737.9,1737.4,5.75558361]
[1745485532028,0.7509,1737.8,1737.4,5.7555876]
[1745485532257,0.7509,1737.8,1737.3,5.75589825]
[1745485532578,0.7509,1737.8,1737.4,6.33121277]
[1745485532785,0.7509,1737.8,1737.5,5.75516439]
[1745485533574,0.55,1737.7,1737.3,5.75587103]
[1745485534043,0.55,1737.7,1737.3,5.75582539]
[1745485534242,0.55,1737.7,1737.5,5.75538753]
[1745485534645,10.2467827,1738.2,1737.5,4.56094862]
[1745485534646,4.2109,1738.0,1737.5,4.56094862]
[1745485534851,6.03860489,1738.2,1738.0,11.50705139]
[1745485535062,0.7509,1738.3,1737.9,5.75389328]
[1745485535247,0.7509,1738.3,1737.8,11.50844318]
[1745485535444,0.7509,1738.3,1737.8,5.75420827]
[1745485535844,0.7509,1738.3,1737.9,5.75393755]
[1745485536133,0.55,1738.2,1737.9,1.15081458]
[1745485536445,0.55,1738.2,1737.9,5.75391376]
[1745485536631,0.8314,1738.3,1737.7,5.75462129]
[1745485537470,0.8314,1738.3,1737.7,5.75456687]
[1745485537661,0.8314,1738.3,1737.7,5.75453466]
[1745485537867,0.8314,1738.3,1737.8,5.7542361]
[1745485538037,0.8314,1738.3,1738.0,5.75360992]
[1745485538676,0.8314,1738.3,1737.9,5.75393204]
[1745485538871,0.8314,1738.3,1737.9,11.50782546]
[1745485539077,0.8314,1738.3,1738.0,5.75370272]
[1745485539376,0.8314,1738.3,1737.9,5.75385571]
[1745485539703,0.8314,1738.3,1738.2,5.75307789]
[1745485539892,0.7546,1738.5,1738.2,5.75292129]
[1745485540061,0.7546,1738.5,1738.2,11.50581045]
[1745485540688,0.7546,1738.7,1738.3,5.75252795]
[1745485540892,0.7546,1738.7,1738.4,5.75241535]
[1745485541093,0.7546,1738.7,1738.4,6.90290968]
[1745485541465,0.55,1738.6,1738.4,6.90290968]
[1745485541767,0.7546,1738.7,1738.4,6.90276406]
[1745485541968,6.03860489,1739.0,1738.7,5.75113718]
[1745485541969,0.7566,1739.0,1738.7,5.75113718]
[1745485542278,0.7566,1739.0,1738.6,5.75159152]
[1745485542474,0.7566,1739.0,1738.5,5.75187842]
[1745485542679,0.7566,1739.0,1738.5,11.50375684]
[1745485542879,0.7566,1739.0,1738.6,5.75163991]
[1745485543086,0.7645,1739.3,1738.7,0.7914]
[1745485543252,0.005,1739.6,1739.1,5.75008377]
[1745485543448,0.7645,1739.5,1739.0,5.75043128]
[1745485543650,0.7645,1739.5,1739.4,5.74910888]
[1745485543852,0.005,1739.6,1739.4,5.74910888]
[1745485544049,0.005,1739.6,1739.2,5.74963872]
[1745485544298,0.005,1739.6,1739.3,5.7493916]
[1745485544455,0.005,1739.6,1739.4,5.74909105]
[1745485545256,0.005,1739.6,1739.5,5.74877838]
[1745485546383,0.005,1739.6,1739.5,6.89856532]
[1745485547591,0.005,1739.6,1739.5,7.65296532]
[1745485549803,0.005,1739.6,1739.5,10.65296532]
[1745485552090,0.005,1739.6,1739.5,7.65296532]
[1745485552459,1e-08,1739.6,1739.5,10.65296532]
[1745485556664,1e-08,1739.6,1739.5,7.65296532]
[1745485556867,1e-08,1739.6,1739.5,6.50317838]
[1745485557080,1e-08,1739.6,1739.5,0.7544]
[1745485557704,1e-08,1739.6,1739.5,6.50317838]
[1745485559009,1e-08,1739.6,1739.5,0.7544]
[1745485559765,4.32664863,1739.6,1739.5,0.7544]
[1745485560308,7.32664863,1739.6,1739.5,0.7544]
[1745485560475,13.50364863,1739.6,1739.5,0.7544]
[1745485561295,13.50364863,1739.6,1738.6,6.177]
[1745485561467,13.50364863,1739.6,1738.7,5.75109625]
[1745485561669,13.50364863,1739.6,1738.8,5.75082933]
[1745485561966,12.95364863,1739.6,1738.9,0.57508293]
[1745485562274,12.95364863,1739.6,1738.6,6.177]
[1745485562275,3.77664862,1739.4,1738.7,5.75120139]
[1745485562481,4.21204098,1739.4,1738.7,5.75120139]
[1745485562910,4.21204098,1739.4,1738.7,11.50237986]
[1745485563416,0.55,1739.5,1738.8,5.75091573]
[1745485564609,3.0,1739.4,1738.7,5.75126087]
[1745485564814,0.55,1739.2,1738.7,1.76798688]
[1745485564973,6.77664862,1739.4,1738.8,5.75104306]
[1745485565168,0.55,1739.3,1738.7,1.76798688]
[1745485565590,0.55,1739.3,1738.7,7.51914989]
[1745485566117,0.55,1739.3,1738.7,1.76798688]
[1745485566313,6.17700001,1739.6,1739.1,5.74990321]
[1745485566523,1e-08,1739.6,1739.0,5.75043128]
[1745485566676,1e-08,1739.6,1739.1,5.74983678]
[1745485567006,1e-08,1739.6,1739.2,5.74966651]
[1745485567214,1e-08,1739.6,1739.2,1.1499563]
[1745485567509,1e-08,1739.6,1739.4,5.74903867]
[1745485567717,1e-08,1739.6,1739.2,5.74955197]
[1745485567882,1e-08,1739.6,1739.4,5.7489845]
[1745485568081,1e-08,1739.6,1739.5,5.74877838]
[1745485568596,1e-08,1739.6,1739.3,5.74940358]
[1745485568809,1e-08,1739.6,1739.4,6.32379543]
[1745485569015,1e-08,1739.6,1739.5,5.74877838]
[1745485574872,1e-08,1739.6,1739.5,6.17301217]
[1745485575292,1e-08,1739.6,1739.5,6.97741217]
[1745485575620,1e-08,1739.6,1739.5,6.17301217]
[1745485575775,0.80940001,1739.6,1739.5,5.74877838]
[1745485575976,1e-08,1739.6,1739.5,5.74877838]
[1745485576813,1e-08,1739.6,1739.5,8.74877838]
[1745485576976,0.78560001,1739.6,1739.5,5.74877838]
[1745485577178,0.78560001,1739.6,1739.5,6.95603576]
[1745485577383,1e-08,1739.6,1739.5,6.95603576]
[1745485577798,0.83170001,1739.6,1739.5,6.95603576]
[1745485578391,1e-08,1739.6,1739.5,6.95603576]
[1745485581595,1e-08,1739.6,1739.5,11.54152437]
[1745485581820,0.8109,1740.1,1740.0,5.74712643]
[1745485582206,0.8109,1740.1,1740.0,6.89656982]
[1745485583530,0.01,1740.1,1740.0,6.89656982]
[1745485586105,0.01,1740.1,1740.0,7.72776982]
[1745485586307,0.005,1741.3,1741.2,6.57436563]
[1745485586501,0.005,1741.3,1741.2,8.74316563]
[1745485586718,0.005,1741.3,1741.2,5.74316563]
[1745485587046,0.7555,1741.3,1740.8,6.164]
[1745485587205,0.7555,1741.3,1741.0,5.74359788]
[1745485587601,0.7555,1741.3,1741.1,5.74346123]
[1745485588005,0.7555,1741.3,1741.1,5.74325722]
[1745485588206,0.7555,1741.3,1741.1,5.74328852]
[1745485588417,0.7555,1741.3,1740.5,9.56735971]
[1745485588615,0.7555,1741.3,1740.5,10.12073597]
[1745485588842,0.7555,1741.3,1740.9,5.74401693]
[1745485589040,0.7555,1741.3,1741.0,5.74370004]
[1745485589523,0.7555,1741.3,1741.2,5.74316563]
[1745485589906,0.005,1741.3,1741.2,5.74316563]
[1745485590316,0.4094744,1742.0,1741.6,5.74184657]
[1745485590544,0.8216,1741.9,1741.3,3.0]
[1745485590727,0.8216,1741.9,1741.2,5.74291579]
[1745485590926,0.55,1741.8,1741.3,5.74269055]
[1745485591254,0.8216,1741.7,1741.3,5.74269055]
[1745485591456,0.8216,1741.7,1741.3,5.74268786]
[1745485591655,0.8216,1741.7,1741.3,5.74266738]
[1745485591805,0.8216,1741.7,1741.3,5.7425971]
[1745485592011,0.7721,1741.5,1741.2,11.90598419]
[1745485592463,0.7721,1741.5,1741.2,17.64892145]
[1745485592767,0.7721,1741.5,1741.2,6.163]
[1745485592968,0.55,1741.4,1741.0,5.7435368]
[1745485593123,0.7721,1741.3,1740.8,6.152]
[1745485593474,0.7721,1741.3,1741.1,5.74333297]
[1745485593633,0.793,1741.7,1741.4,5.74220241]
[1745485593980,0.793,1741.7,1741.4,5.74231901]
[1745485594182,0.793,1741.7,1741.6,5.74184657]
[1745485594675,0.793,1741.7,1741.5,5.74204231]
[1745485595079,0.793,1741.7,1741.3,6.151]
[1745485595233,0.793,1741.7,1741.3,11.893662]
[1745485595664,0.793,1741.7,1741.4,5.74249827]
[1745485595830,0.793,1741.7,1741.3,11.89361104]
[1745485596031,0.793,1741.7,1741.5,5.74206386]
[1745485596231,0.793,1741.7,1741.4,5.74229707]
[1745485596472,0.793,1741.7,1741.5,5.74214678]
[1745485596656,0.793,1741.7,1741.6,5.74184657]
[1745485597055,0.793,1741.7,1741.5,0.67080521]
[1745485597260,0.793,1741.7,1741.5,5.74215995]
[1745485597444,0.793,1741.7,1741.6,5.74184657]
[1745485597644,0.793,1741.7,1741.5,5.74207024]
[1745485598040,0.793,1741.7,1741.5,5.74193397]
[1745485598241,0.793,1741.7,1741.6,5.74184657]
[1745485598446,0.793,1741.7,1741.5,6.31612737]
[1745485598646,0.793,1741.7,1741.5,5.74193397]
[1745485598960,0.793,1741.7,1741.3,11.89371494]
[1745485599287,0.793,1741.7,1741.4,5.74248904]
[1745485599995,0.793,1741.7,1741.5,5.74212808]
[1745485600149,0.793,1741.7,1741.5,5.7420644]
[1745485600348,0.793,1741.7,1741.5,6.89041437]
[1745485600570,0.793,1741.7,1741.6,5.74184657]
[1745485600792,0.7874,1741.9,1741.7,11.48269711]
[1745485600996,0.7874,1741.9,1741.6,5.74159139]
[1745485601191,0.7874,1741.9,1741.7,5.74149532]
[1745485601351,0.7874,1741.9,1741.8,5.74118727]
[1745485601551,0.4094744,1742.0,1741.9,5.74085768]
[1745485601747,0.7752,1741.9,1741.3,12.68537164]
[1745485601984,0.7752,1741.9,1741.0,4.20775885]
[1745485601985,0.55,1741.8,1741.2,5.74316126]
[1745485602167,0.7752,1741.7,1741.4,5.74235741]
[1745485602372,0.7752,1741.7,1741.4,5.74232341]
[1745485602688,0.7752,1741.7,1741.4,0.57423234]
[1745485602856,0.7752,1741.7,1741.5,5.74193993]
[1745485603059,0.7752,1741.7,1741.6,5.74184657]
[1745485603256,0.7662,1741.9,1741.7,5.74144119]
[1745485603775,0.7662,1741.9,1741.5,6.148]
[1745485603997,0.7662,1741.9,1741.6,11.48330308]
[1745485604164,0.7662,1741.9,1741.7,5.74138746]
[1745485604487,0.7662,1741.9,1741.7,5.74131013]
[1745485605151,0.7662,1741.9,1741.6,1.76313031]
[1745485605353,0.7662,1741.9,1741.5,11.88994114]
[1745485605694,0.55,1741.8,1741.5,6.148]
[1745485605901,0.7662,1741.9,1741.5,11.8900634]
[1745485606187,0.7662,1741.9,1741.5,6.148]
[1745485606482,0.7662,1741.9,1741.5,11.88991357]
[1745485606784,0.7662,1741.9,1741.6,5.7417718]
[1745485606994,0.7662,1741.9,1741.5,11.88991357]
[1745485607214,0.7662,1741.9,1741.8,5.74118727]
[1745485608001,0.7662,1741.9,1741.5,13.07897979]
[1745485608293,0.825,1741.7,1741.4,5.74246118]
[1745485608497,0.825,1741.7,1741.4,5.74234586]
[1745485608645,1.375,1741.7,1741.6,5.74184657]
[1745485608847,1.375,1741.7,1741.5,5.74205827]
[1745485609048,1.375,1741.7,1741.5,5.74200172]